bitfinex/quotes_SOLUSD_20251224
["timestamp","ask_amount","ask_price","bid_price","bid_amount"]
[1766536035993,10.39766709,123.86,123.83,0.72]
[1766536042881,8.71363151,123.86,123.83,0.72]
[1766536058412,10.39766709,123.86,123.83,0.72]
[1766536059913,8.71363151,123.86,123.83,0.72]
[1766536060090,10.39766709,123.86,123.83,0.72]
[1766536060492,8.71363151,123.86,123.83,0.72]
[1766536068129,16.42403558,123.88,123.84,1.68403558]
[1766536068412,20.81955975,123.89,123.86,0.72]
[1766536068611,31.25723271,123.89,123.86,0.72]
[1766536069318,8.07240521,123.88,123.86,0.72]
[1766536071389,8.71240521,123.88,123.86,0.72]
[1766536072300,0.67,123.87,123.84,24.23556973]
[1766536072505,2.35403558,123.87,123.82,16.42403558]
[1766536072908,0.67,123.86,123.82,16.42403558]
[1766536073396,8.74398957,123.86,123.82,16.42403558]
[1766536074405,8.74398957,123.86,123.83,0.72]
[1766536078821,8.74398957,123.86,123.83,1.68403558]
[1766536079003,8.74398957,123.86,123.84,0.72]
[1766536088112,8.74398957,123.86,123.83,0.71]
[1766536088320,0.71,123.85,123.83,0.71]
[1766536089914,8.07398957,123.86,123.83,0.71]
[1766536090111,0.71,123.85,123.83,0.71]
[1766536091014,0.71,123.85,123.82,15.45]
[1766536091226,0.71,123.85,123.82,14.74]
[1766536091434,8.7844823,123.85,123.83,0.71]
[1766536105050,0.71,123.84,123.81,0.71]
[1766536106118,8.78505614,123.84,123.81,0.71]
[1766536107643,8.78505614,123.84,123.82,0.71]
[1766536108842,0.71,123.83,123.81,0.71]
[1766536110552,8.78505614,123.84,123.81,0.71]
[1766536118357,0.72,123.82,123.79,0.79]
[1766536118748,0.72,123.82,123.8,0.69]
[1766536120736,8.79587091,123.83,123.8,3.32175225]
[1766536122970,8.79587091,123.83,123.8,0.69]
[1766536125868,0.72,123.82,123.79,0.79]
[1766536126561,0.72,123.81,123.79,0.1]
[1766536127571,0.72,123.81,123.79,0.79]
[1766536130773,8.07701593,123.81,123.79,0.1]
[1766536130946,8.79701593,123.81,123.79,0.1]
[1766536131847,0.72,123.81,123.79,0.1]
[1766536134080,0.72,123.81,123.79,0.79]
[1766536135076,8.7969366,123.81,123.79,0.79]
[1766536136074,8.0769366,123.81,123.79,0.79]
[1766536139381,0.72,123.81,123.79,0.1]
[1766536141375,11.42928337,123.81,123.79,0.1]
[1766536141775,8.79753112,123.81,123.79,0.1]
[1766536143182,2.63175225,123.85,123.81,0.69]
[1766536143390,0.72,123.85,123.82,0.69]
[1766536143675,0.72,123.84,123.82,0.69]
[1766536143874,0.72,123.84,123.81,3.32175225]
[1766536145684,8.7955002,123.84,123.81,0.69]
[1766536154176,0.67,123.83,123.8,18.07175225]
[1766536154487,0.67,123.83,123.79,18.17175225]
[1766536154902,0.67,123.83,123.79,17.47175225]
[1766536155077,0.67,123.83,123.8,0.7]
[1766536155996,8.0762397,123.82,123.8,0.7]
[1766536158588,8.07558749,123.83,123.79,16.52506905]
[1766536158790,0.67,123.82,123.79,2.48506905]
[1766536158995,0.67,123.82,123.79,0.8]
[1766536160692,8.7468906,123.82,123.79,0.8]
[1766536161296,8.0768906,123.82,123.79,0.8]
[1766536161481,8.7468906,123.82,123.79,0.8]
[1766536163695,8.0768906,123.82,123.8,0.7]
[1766536163906,8.7468906,123.82,123.8,0.7]
[1766536164272,8.07590179,123.83,123.8,0.7]
[1766536164477,8.07590179,123.83,123.81,0.7]
[1766536166979,8.74525539,123.84,123.82,0.7]
[1766536167196,8.74525539,123.84,123.8,1.68506905]
[1766536167410,8.74525539,123.84,123.81,0.7]
[1766536168399,0.67,123.83,123.8,15.44]
[1766536170802,8.74621096,123.83,123.8,15.44]
[1766536176206,8.74621096,123.83,123.8,14.74]
[1766536176397,8.74621096,123.83,123.81,0.66]
[1766536178103,8.0749354,123.84,123.81,0.66]
[1766536178284,8.7849354,123.84,123.81,0.66]
[1766536182112,0.71,123.83,123.81,0.66]
[1766536188823,8.78583203,123.83,123.81,0.66]
[1766536189513,8.78583203,123.83,123.8,14.74]
[1766536189817,8.78583203,123.83,123.8,0.66]
[1766536190317,8.78583203,123.83,123.8,15.4]
[1766536190816,8.78583203,123.83,123.8,14.74]
[1766536191019,8.78583203,123.83,123.81,0.66]
[1766536191423,8.78583203,123.83,123.8,14.74]
[1766536191606,8.78583203,123.83,123.8,15.4]
[1766536192118,8.78583203,123.83,123.8,0.66]
[1766536192328,8.78583203,123.83,123.8,15.4]
[1766536192931,8.78583203,123.83,123.8,0.66]
[1766536193130,0.71,123.82,123.8,15.4]
[1766536201407,8.78631455,123.82,123.8,15.4]
[1766536201805,8.07631455,123.82,123.8,15.4]
[1766536205325,8.78586136,123.83,123.8,15.4]
[1766536205526,8.7842834,123.85,123.82,0.66]
[1766536205825,8.7842834,123.85,123.83,0.66]
[1766536206800,0.71,123.84,123.82,14.74]
[1766536207515,0.71,123.84,123.81,15.45]
[1766536208924,8.78544761,123.84,123.81,15.45]
[1766536209630,10.47051666,123.84,123.81,15.45]
[1766536209953,9.76051666,123.84,123.81,15.45]
[1766536210133,10.45051666,123.84,123.81,15.45]
[1766536211232,0.69,123.83,123.8,0.71]
[1766536211403,0.69,123.82,123.8,14.74]
[1766536212529,0.69,123.82,123.79,0.81]
[1766536212728,0.69,123.81,123.79,14.84]
[1766536213108,0.69,123.81,123.79,15.55]
[1766536214133,8.76660848,123.82,123.79,15.55]
[1766536216628,8.7669187,123.81,123.79,15.55]
[1766536231951,20.18992483,123.83,123.79,15.55]
[1766536232127,0.69,123.82,123.79,15.55]
[1766536233643,0.69,123.82,123.79,14.84]
[1766536233851,0.69,123.82,123.8,0.71]
[1766536234149,8.76658874,123.82,123.8,0.71]
[1766536234447,8.76658874,123.82,123.79,18.16346014]
[1766536234828,8.76658874,123.82,123.79,15.53]
[1766536235019,8.76658874,123.82,123.79,18.16346014]
[1766536236424,8.76658874,123.82,123.79,15.53]
[1766536237760,0.65,123.82,123.79,15.53]
[1766536239450,8.7267642,123.82,123.79,15.53]
[1766536242557,0.65,123.81,123.79,0.1]
[1766536242725,0.65,123.79,123.78,0.1]
[1766536243128,0.65,123.8,123.78,0.1]
[1766536243552,2.63346014,123.8,123.78,0.1]
[1766536243753,11.08767296,123.78,123.77,1e-08]
[1766536243956,10.43767296,123.76,123.75,1e-08]
[1766536244137,11.08767296,123.76,123.75,1e-08]
[1766536244337,0.65,123.75,123.74,1e-08]
[1766536244542,8.73080808,123.75,123.74,1e-08]
[1766536245129,11.36426822,123.75,123.74,1e-08]
[1766536245546,11.36426822,123.75,123.71,0.76]
[1766536245547,0.65,123.74,123.71,0.76]
[1766536245750,0.65,123.73,123.71,0.76]
[1766536246545,8.73248245,123.73,123.71,0.1]
[1766536247434,8.08248245,123.73,123.71,0.1]
[1766536247744,0.65,123.72,123.71,1e-08]
[1766536249055,8.73248245,123.73,123.71,1e-08]
[1766536249743,10.43767296,123.71,123.7,0.76]
[1766536250069,8.73248245,123.73,123.7,0.76]
[1766536253830,11.36594259,123.73,123.7,0.76]
[1766536256062,8.73248245,123.73,123.7,0.76]
[1766536256746,18.51943078,123.74,123.71,0.66]
[1766536256950,10.43767296,123.74,123.72,0.66]
[1766536258259,2.63346014,123.73,123.71,0.66]
[1766536258463,3.28346014,123.73,123.7,0.76]
[1766536259973,0.65,123.72,123.7,0.76]
[1766536260162,8.73308383,123.72,123.7,0.76]
[1766536260468,3.28346014,123.71,123.68,14.86]
[1766536261567,0.65,123.71,123.68,14.86]
[1766536262159,8.73399796,123.71,123.68,14.86]
[1766536262363,8.73399796,123.71,123.68,15.52]
[1766536264947,8.73399796,123.71,123.68,0.76]
[1766536273576,0.69,123.7,123.68,0.1]
[1766536273877,3.32346014,123.7,123.68,0.1]
[1766536274050,0.69,123.7,123.68,0.1]
[1766536274246,3.32346014,123.7,123.68,0.1]
[1766536275077,8.77460623,123.7,123.68,0.1]
[1766536286987,0.69,123.7,123.68,0.81]
[1766536287288,8.77309951,123.72,123.69,0.71]
[1766536287463,8.08244608,123.73,123.7,0.71]
[1766536287669,8.77179324,123.74,123.71,0.71]
[1766536290493,10.4603518,123.74,123.71,0.71]
[1766536290887,8.77179324,123.74,123.71,0.71]
[1766536291090,10.4603518,123.74,123.71,0.71]
[1766536291894,8.77179324,123.74,123.71,0.71]
[1766536292093,10.43767296,123.75,123.72,1.68855856]
[1766536292294,8.77050744,123.76,123.73,0.71]
[1766536292598,8.08050744,123.76,123.73,0.71]
[1766536292896,20.88966414,123.77,123.74,0.71]
[1766536292897,8.07966078,123.77,123.74,0.71]
[1766536293070,22.57461177,123.79,123.75,0.71]
[1766536293270,0.69,123.78,123.75,0.71]
[1766536293489,10.4575364,123.78,123.75,0.71]
[1766536294301,8.76897784,123.78,123.75,0.71]
[1766536296600,0.68,123.77,123.75,0.71]
[1766536299488,0.68,123.75,123.7,1.68855856]
[1766536299806,2.36855856,123.75,123.71,0.68]
[1766536300190,0.68,123.75,123.71,1.68855856]
[1766536300385,0.68,123.75,123.72,0.68]
[1766536301382,19.1981291,123.76,123.73,2.36855856]
[1766536301783,8.08045614,123.76,123.73,1.68855856]
[1766536302081,8.75966326,123.77,123.74,0.68]
[1766536305225,8.75966326,123.77,123.74,2.36855856]
[1766536307594,8.75966326,123.77,123.75,1.68855856]
[1766536310619,8.75966326,123.77,123.74,2.36855856]
[1766536314030,8.75966326,123.77,123.75,1.68855856]
[1766536314528,8.75966326,123.77,123.75,2.36855856]
[1766536315425,8.75966326,123.77,123.75,0.68]
[1766536316130,8.75966326,123.77,123.72,8.08245742]
[1766536316308,8.75966326,123.77,123.74,2.36855856]
[1766536320932,8.75966326,123.77,123.74,1.68855856]
[1766536321230,0.68,123.77,123.74,2.36855856]
[1766536322227,8.7595265,123.77,123.74,2.36855856]
[1766536324220,8.7595265,123.77,123.75,0.68]
[1766536324418,23.52335983,123.79,123.76,2.36855856]
[1766536324616,8.75868028,123.79,123.76,2.36855856]
[1766536324818,8.75868028,123.79,123.77,0.68]
[1766536325018,8.75868028,123.79,123.76,2.36855856]
[1766536326029,0.68,123.79,123.77,1.68855856]
[1766536326636,0.68,123.79,123.77,2.36855856]
[1766536331422,0.68,123.79,123.77,0.68]
[1766536332738,0.68,123.79,123.77,2.36855856]
[1766536333044,18.51534233,123.8,123.78,0.7]
[1766536333841,19.19534233,123.8,123.78,0.7]
[1766536335324,19.19534233,123.8,123.77,1.68855856]
[1766536335525,19.19534233,123.8,123.77,2.38855856]
[1766536336440,18.51534233,123.8,123.74,8.08116342]
[1766536336647,0.68,123.78,123.74,2.38855856]
[1766536336845,0.68,123.77,123.74,2.38855856]
[1766536338541,0.68,123.77,123.74,15.46]
[1766536339342,8.75953831,123.77,123.74,15.46]
[1766536343651,0.68,123.77,123.74,18.0953489]
[1766536346259,8.75968669,123.77,123.74,18.0953489]
[1766536348736,8.75968669,123.77,123.74,3.3353489]
[1766536348943,0.68,123.77,123.74,18.0953489]
[1766536349958,8.75958408,123.77,123.74,18.0953489]
[1766536351560,8.75958408,123.77,123.74,15.46]
[1766536353558,0.68,123.76,123.74,15.46]
[1766536355164,0.7,123.78,123.74,15.46]
[1766536355363,0.7,123.77,123.74,15.46]
[1766536359064,0.67,123.78,123.75,0.66]
[1766536360558,0.67,123.78,123.74,17.3953489]
[1766536360559,0.67,123.78,123.74,15.42]
[1766536361747,8.7495023,123.77,123.74,15.42]
[1766536368560,0.67,123.77,123.74,15.42]
[1766536373373,8.07910187,123.78,123.74,14.76]
[1766536373671,0.67,123.77,123.75,0.66]
[1766536376580,0.67,123.77,123.74,15.42]
[1766536380880,11.38378721,123.79,123.75,0.66]
[1766536381181,8.74843831,123.79,123.76,0.66]
[1766536381377,8.74843831,123.79,123.76,2.6353489]
[1766536381591,19.18533068,123.8,123.77,0.66]
[1766536381956,8.07700004,123.81,123.78,0.66]
[1766536382172,8.74700004,123.81,123.78,0.66]
[1766536382482,0.67,123.82,123.79,0.66]
[1766536382682,0.67,123.83,123.8,3.2953489]
[1766536382858,0.67,123.83,123.8,0.66]
[1766536383190,0.67,123.82,123.79,0.66]
[1766536386955,0.67,123.82,123.79,11.43335784]
[1766536387187,0.66,123.83,123.8,0.72]
[1766536387984,0.66,123.82,123.8,0.72]
[1766536388170,0.66,123.82,123.79,3.3553489]
[1766536389989,0.66,123.81,123.78,26.19395514]
[1766536390888,0.66,123.81,123.79,0.72]
[1766536391080,0.66,123.82,123.79,0.72]
[1766536395866,8.07587398,123.83,123.8,0.72]
[1766536396093,0.86,123.84,123.8,0.72]
[1766536396265,0.66,123.83,123.8,26.19284103]
[1766536396466,0.66,123.83,123.81,0.72]
[1766536396667,0.2,123.84,123.82,0.72]
[1766536396986,0.2,123.84,123.83,0.72]
[1766536397175,0.86,123.86,123.83,0.72]
[1766536398376,8.93366766,123.86,123.83,0.72]
[1766536398769,0.86,123.86,123.83,0.72]
[1766536400298,0.66,123.85,123.82,15.44]
[1766536403498,0.66,123.85,123.82,17.12446029]
[1766536405903,0.66,123.85,123.82,15.44]
[1766536410501,0.66,123.85,123.82,17.12446029]
[1766536410680,0.66,123.85,123.82,15.44]
[1766536412618,8.73434279,123.85,123.82,15.44]
[1766536412805,0.66,123.83,123.8,0.68]
[1766536412997,0.66,123.82,123.79,29.22807914]
[1766536413182,9.75955042,123.84,123.8,0.68]
[1766536413377,0.66,123.83,123.79,9.76262712]
[1766536413584,0.66,123.83,123.8,0.68]
[1766536415402,0.66,123.83,123.8,15.42]
[1766536417415,8.07509013,123.84,123.81,0.68]
[1766536417588,8.75509013,123.84,123.81,0.68]
[1766536418092,0.68,123.84,123.81,0.68]
[1766536418496,0.68,123.84,123.82,14.74]
[1766536419514,0.68,123.85,123.82,15.42]
[1766536420215,8.95368758,123.86,123.83,0.68]
[1766536426018,0.68,123.85,123.83,0.68]
[1766536433218,0.68,123.84,123.81,19.19218463]
[1766536433401,0.68,123.84,123.82,14.74]
[1766536437428,8.75499676,123.84,123.82,14.74]
[1766536438014,0.68,123.83,123.79,12.80213325]
[1766536438214,0.68,123.83,123.8,14.74]
[1766536438725,0.68,123.83,123.8,15.42]
[1766536440133,0.68,123.83,123.8,0.68]
[1766536440331,0.68,123.82,123.8,15.42]
[1766536441199,8.7549354,123.84,123.8,14.74]
[1766536441403,8.0749354,123.84,123.81,0.68]
[1766536441601,0.68,123.83,123.81,0.68]
[1766536442325,0.68,123.83,123.8,17.10446029]
[1766536442709,0.68,123.83,123.8,15.42]
[1766536442924,0.68,123.82,123.8,14.74]
[1766536443931,0.68,123.82,123.8,15.42]
[1766536444111,8.75571543,123.83,123.8,15.42]
[1766536444830,8.07571543,123.83,123.8,15.42]
[1766536445140,0.68,123.82,123.8,15.42]
[1766536445631,0.68,123.84,123.81,0.68]
[1766536450041,0.72,123.85,123.82,2.36446029]
[1766536450248,0.72,123.85,123.83,0.68]
[1766536450618,0.72,123.85,123.82,2.36446029]
[1766536452652,8.27380944,123.86,123.83,0.68]
[1766536452945,8.99380944,123.86,123.83,0.68]
[1766536454652,8.99380944,123.86,123.84,0.68]
[1766536455353,8.99380944,123.86,123.83,2.36446029]
[1766536455537,0.72,123.85,123.83,2.36446029]
[1766536455954,8.27380944,123.86,123.83,2.36446029]
[1766536456130,8.99380944,123.86,123.83,0.68]
[1766536456526,8.99380944,123.86,123.83,2.36446029]
[1766536457666,8.27380944,123.86,123.81,30.89096061]
[1766536457857,0.72,123.85,123.82,2.36446029]
[1766536460763,0.72,123.85,123.83,0.68]
[1766536461141,0.72,123.85,123.82,1.68446029]
[1766536461445,0.72,123.85,123.83,0.68]
[1766536461646,0.92,123.86,123.83,0.68]
[1766536468362,0.72,123.85,123.83,0.68]
[1766536469255,0.72,123.84,123.81,0.68]
[1766536469459,0.72,123.84,123.81,15.42]
[1766536481877,0.72,123.84,123.81,26.12595928]
[1766536484857,0.72,123.84,123.82,0.67]
[1766536485259,8.77439121,123.85,123.82,0.67]
[1766536485659,0.7,123.85,123.82,2.63156807]
[1766536485856,8.97390277,123.86,123.83,0.67]
[1766536487064,8.97390277,123.86,123.83,3.30156807]
[1766536488380,0.7,123.89,123.85,2.63156807]
[1766536488579,8.07203082,123.89,123.86,3.30156807]
[1766536488780,0.7,123.89,123.87,0.67]
[1766536489170,8.97105958,123.9,123.87,3.30156807]
[1766536489794,0.7,123.89,123.87,3.30156807]
[1766536490371,0.7,123.89,123.86,18.04156807]
[1766536492286,0.7,123.89,123.86,14.74]
[1766536492485,0.7,123.89,123.86,30.15]
[1766536492694,0.7,123.89,123.86,15.41]
[1766536493665,0.7,123.89,123.86,26.31262765]
[1766536494888,10.90262765,123.9,123.86,28.27419572]
[1766536494889,8.27105958,123.9,123.86,28.27419572]
[1766536495185,0.7,123.89,123.87,3.30156807]
[1766536495372,0.7,123.89,123.87,0.67]
[1766536496191,0.7,123.89,123.86,26.31262765]
[1766536497290,0.7,123.89,123.86,28.94419572]
[1766536501391,0.7,123.89,123.86,18.04156807]
[1766536501596,0.7,123.89,123.86,15.41]
[1766536501794,0.7,123.89,123.86,14.74]
[1766536501997,0.7,123.89,123.86,18.04156807]
[1766536502301,0.7,123.89,123.87,0.67]
[1766536504094,0.7,123.89,123.86,18.04156807]
[1766536504703,8.27105958,123.9,123.88,0.67]
[1766536504704,0.2,123.9,123.88,0.67]
[1766536505678,0.9,123.9,123.87,3.30156807]
[1766536505878,0.7,123.89,123.87,0.67]
[1766536506390,0.7,123.89,123.86,15.41]
[1766536506798,0.7,123.89,123.86,14.74]
[1766536507505,0.67,123.88,123.86,14.74]
[1766536508508,0.67,123.89,123.86,15.39]
[1766536509908,0.67,123.89,123.87,0.65]
[1766536510310,0.67,123.89,123.86,18.02156807]
[1766536511207,0.67,123.89,123.86,15.39]
[1766536513914,0.67,123.88,123.85,15.39]
[1766536514092,0.67,123.87,123.85,15.39]
[1766536514504,0.67,123.87,123.83,8.72530965]
[1766536514688,0.67,123.87,123.83,11.35687772]
[1766536516704,0.67,123.87,123.84,14.74]
[1766536517404,0.67,123.87,123.84,15.39]
[1766536518316,2.63156807,123.86,123.8,10.43767296]
[1766536518513,8.07361522,123.87,123.82,0.65]
[1766536518514,0.67,123.85,123.82,0.65]
[1766536518717,0.67,123.85,123.82,11.35778905]
[1766536519619,0.67,123.85,123.82,3.28156807]
[1766536520318,25.44486291,123.87,123.82,10.70750405]
[1766536520524,25.44486291,123.87,123.83,3.28156807]
[1766536520525,0.67,123.86,123.83,3.28156807]
[1766536520818,0.67,123.86,123.83,18.02156807]
[1766536522823,0.67,123.86,123.83,15.39]
[1766536523499,8.07395521,123.86,123.83,14.74]
[1766536523701,0.67,123.85,123.83,14.74]
[1766536523909,0.67,123.85,123.83,15.39]
[1766536524820,0.67,123.85,123.83,0.65]
[1766536525244,0.67,123.85,123.83,15.39]
[1766536530342,8.74329051,123.87,123.83,23.4655261]
[1766536530542,10.42753956,123.87,123.84,0.65]
[1766536531736,8.74329051,123.87,123.84,0.65]
[1766536534052,10.43767296,123.88,123.84,8.07486212]
[1766536534341,25.92177682,123.89,123.86,0.68]
[1766536534342,0.67,123.89,123.86,0.68]
[1766536534506,9.95565352,123.9,123.86,0.68]
[1766536534507,8.94140447,123.9,123.86,0.68]
[1766536534710,0.67,123.89,123.86,0.68]
[1766536535418,0.67,123.88,123.85,15.42]
[1766536535952,0.67,123.88,123.85,25.17849779]
[1766536540349,0.67,123.88,123.86,0.68]
[1766536541647,0.67,123.88,123.85,14.74]
[1766536541848,0.66,123.86,123.83,8.07558514]
[1766536542042,0.66,123.86,123.82,31.56770441]
[1766536542245,0.66,123.86,123.82,17.10424905]
[1766536542756,0.66,123.86,123.83,0.68]
[1766536543127,0.66,123.86,123.82,17.10424905]
[1766536543651,0.66,123.84,123.81,14.74]
[1766536547053,0.66,123.83,123.81,14.74]
[1766536548441,0.66,123.83,123.8,0.68]
[1766536548643,0.66,123.8,123.76,10.44415166]
[1766536548848,0.66,123.8,123.76,8.75990261]
[1766536549041,0.66,123.79,123.76,0.68]
[1766536550462,8.7378042,123.8,123.76,0.68]
[1766536552139,8.7378042,123.8,123.77,14.74]
[1766536560864,8.7378042,123.8,123.77,15.42]
[1766536561178,0.66,123.8,123.77,15.42]
[1766536564973,19.17395101,123.82,123.78,1.68424905]
[1766536565174,19.17395101,123.82,123.79,15.42]
[1766536567285,8.73627805,123.82,123.79,15.42]
[1766536569776,10.4205271,123.82,123.79,15.42]
[1766536573587,8.73627805,123.82,123.79,15.42]
[1766536574682,0.66,123.82,123.79,15.42]
[1766536580097,8.07512222,123.84,123.8,0.66]
[1766536580396,8.07512222,123.84,123.81,0.66]
[1766536580397,0.66,123.84,123.81,0.66]
[1766536580692,0.66,123.84,123.81,15.4]
[1766536589092,0.66,123.84,123.81,18.03232075]
[1766536590870,0.66,123.83,123.81,14.74]
[1766536592194,0.66,123.83,123.8,3.29232075]
[1766536592496,0.66,123.83,123.8,18.03232075]
[1766536594701,0.66,123.83,123.8,3.29232075]
[1766536595495,0.66,123.83,123.8,18.03232075]
[1766536596694,0.66,123.83,123.8,3.29232075]
[1766536596893,0.66,123.83,123.8,18.03232075]
[1766536598292,0.66,123.83,123.8,3.29232075]
[1766536598598,0.66,123.83,123.8,18.03232075]
[1766536599595,0.66,123.83,123.8,3.29232075]
[1766536599894,0.66,123.83,123.8,18.03232075]
[1766536600097,0.66,123.83,123.8,3.29232075]
[1766536600500,0.66,123.83,123.8,18.03232075]
[1766536604996,0.66,123.83,123.8,15.4]
[1766536607301,0.66,123.83,123.8,15.42]
[1766536607500,0.66,123.83,123.8,18.05232075]
[1766536608504,0.66,123.83,123.8,15.42]
[1766536609790,8.74502657,123.84,123.81,0.68]
[1766536610401,8.74393195,123.86,123.81,3.31232075]
[1766536610702,0.67,123.87,123.84,0.68]
[1766536610890,0.67,123.87,123.84,15.42]
[1766536611891,0.67,123.87,123.84,18.05232075]
[1766536612097,0.67,123.87,123.85,0.68]
[1766536613796,0.67,123.88,123.85,0.68]
[1766536617014,8.7423547,123.88,123.85,0.68]
[1766536617216,0.67,123.87,123.85,0.68]
[1766536619082,0.67,123.87,123.84,18.05232075]
[1766536621291,0.67,123.87,123.84,3.31232075]
[1766536621490,0.67,123.87,123.84,26.127113]
[1766536621703,0.67,123.87,123.84,25.447113]
[1766536621903,0.67,123.87,123.85,0.68]
[1766536622412,8.0723547,123.88,123.85,18.05232075]
[1766536622413,0.67,123.88,123.85,18.05232075]
[1766536623116,0.67,123.89,123.86,2.63232075]
[1766536623316,18.70901406,123.9,123.88,0.68]
[1766536623317,0.87,123.9,123.88,0.68]
[1766536624090,0.87,123.9,123.87,18.05232075]
[1766536624291,0.2,123.9,123.88,3.31232075]
[1766536624514,0.87,123.91,123.89,3.11232075]
[1766536624515,0.2,123.91,123.89,3.11232075]
[1766536625417,0.67,123.93,123.9,2.63232075]
[1766536625598,0.2,123.95,123.93,0.28]
[1766536625802,0.2,123.95,123.93,2.91232075]
[1766536626192,0.2,123.95,123.93,17.65232075]
[1766536627526,0.67,123.94,123.93,14.74]
[1766536630126,0.67,123.94,123.89,11.17944925]
[1766536630351,0.67,123.94,123.9,25.72320051]
[1766536630733,0.67,123.94,123.91,8.07037267]
[1766536631029,0.87,123.95,123.92,14.74]
[1766536632608,0.2,123.95,123.93,0.28]
[1766536633406,0.2,123.95,123.92,23.0896238]
[1766536633606,0.87,123.95,123.92,25.72194455]
[1766536636636,0.2,123.95,123.92,25.44194455]
[1766536636933,21.3367107,123.97,123.94,2.63232075]
[1766536636934,0.2,123.97,123.94,2.63232075]
[1766536637133,0.2,123.97,123.95,17.37232075]
[1766536637317,0.2,123.97,123.95,14.74]
[1766536638833,0.2,123.97,123.95,25.43988912]
[1766536640425,0.2,123.97,123.96,2.63232075]
[1766536640626,0.2,123.97,123.95,25.43988912]
[1766536641637,0.1,123.98,123.95,25.43988912]
[1766536641845,0.1,123.98,123.96,2.63232075]
[1766536642333,0.1,123.98,123.97,14.74]
[1766536646526,12.11795091,123.98,123.91,1.68027795]
[1766536646744,1.68027795,123.97,123.92,0.7]
[1766536647045,8.06610137,123.98,123.94,0.7]
[1766536647949,18.70303243,123.99,123.95,0.7]
[1766536648144,18.70303243,123.99,123.96,0.7]
[1766536648350,10.63767296,123.99,123.96,0.7]
[1766536648545,0.2,123.99,123.96,0.7]
[1766536648747,0.2,123.99,123.97,0.7]
[1766536649056,8.26517587,123.99,123.94,1.68027795]
[1766536649237,8.26517587,123.99,123.95,15.44]
[1766536649555,9.94545382,123.99,123.95,15.44]
[1766536649748,1.68027795,123.98,123.95,15.44]
[1766536649955,28.42809223,123.99,123.95,15.44]
[1766536650254,30.10837018,123.99,123.95,15.44]
[1766536650451,0.2,123.99,123.95,14.74]
[1766536650637,8.26518574,123.99,123.96,0.7]
[1766536651252,8.26518574,123.99,123.96,14.74]
[1766536651846,8.26518574,123.99,123.96,15.44]
[1766536657249,0.2,123.99,123.96,15.44]
[1766536657750,0.2,123.99,123.96,14.74]
[1766536658142,0.2,123.99,123.97,0.66]
[1766536658345,8.26523867,123.99,123.96,15.4]
[1766536658541,9.94551662,123.99,123.96,15.4]
[1766536659250,8.26523867,123.99,123.96,15.4]
[1766536660058,9.94551662,123.99,123.96,14.74]
[1766536660252,1.68027795,123.98,123.95,15.42]
[1766536663861,9.7461267,123.98,123.95,15.42]
[1766536664263,8.06584875,123.98,123.95,15.42]
[1766536664762,9.94572719,123.99,123.95,15.42]